bitfinex/quotes_SOLUSD_20230112
["timestamp","ask_amount","ask_price","bid_price","bid_amount"]
[1673553139792,17.0,16.556,16.535,113.7467]
[1673553140001,45.31,16.555,16.536,18.75725104]
[1673553140333,20.0,16.554,16.536,18.75725104]
[1673553140539,17.0,16.553,16.535,46.23723751]
[1673553140753,45.32,16.552,16.533,84.7665]
[1673553140960,17.0,16.551,16.533,84.7665]
[1673553141145,45.32,16.55,16.526,18.75725104]
[1673553141478,45.32,16.55,16.521,116.0909]
[1673553141479,20.0,16.548,16.521,116.0909]
[1673553141692,49.89205,16.547,16.521,130.11815104]
[1673553141894,20.0,16.545,16.522,18.75725104]
[1673553142106,45.34,16.544,16.522,18.75725104]
[1673553142322,45.34,16.544,16.53,20.58]
[1673553142655,20.0,16.545,16.53,20.58]
[1673553142837,20.0,16.545,16.531,18.75725104]
[1673553143050,45.34,16.544,16.521,111.3609]
[1673553143265,45.34,16.544,16.526,18.75725104]
[1673553143481,45.34,16.544,16.527,20.0]
[1673553143784,45.34,16.544,16.521,111.3609]
[1673553144001,20.0,16.542,16.523,18.75725104]
[1673553144214,20.0,16.54,16.521,111.3609]
[1673553144838,17.0,16.539,16.522,18.75725104]
[1673553145164,20.0,16.54,16.522,18.75725104]
[1673553145479,62.35,16.539,16.515,84.6673]
[1673553145689,62.35,16.539,16.52,18.25725104]
[1673553146213,17.0,16.539,16.52,18.25725104]
[1673553146422,17.0,16.539,16.521,20.0]
[1673553146839,65.35,16.54,16.521,38.75725104]
[1673553147055,65.35,16.54,16.521,20.0]
[1673553148131,65.35,16.54,16.519,20.0]
[1673553148321,65.35,16.54,16.521,18.75725104]
[1673553148863,17.0,16.539,16.522,20.0]
[1673553149062,45.36,16.538,16.515,134.42253751]
[1673553149276,37.0,16.537,16.517,18.75725104]
[1673553149591,45.36,16.536,16.517,18.75725104]
[1673553150126,20.0,16.54,16.52,103.23]
[1673553150440,20.0,16.54,16.521,69.70148855]
[1673553150651,136.7658,16.549,16.53,20.53]
[1673553150859,45.33,16.547,16.53,20.53]
[1673553151176,20.0,16.546,16.524,18.75725104]
[1673553151807,20.0,16.546,16.52,20.69]
[1673553151997,20.0,16.546,16.52,39.44725104]
[1673553152209,17.0,16.541,16.52,39.44725104]
[1673553153157,20.0,16.546,16.52,85.68448855]
[1673553153998,20.0,16.546,16.521,20.0]
[1673553154206,20.0,16.546,16.522,18.92]
[1673553154536,20.0,16.546,16.523,20.0]
[1673553154743,20.0,16.546,16.53,20.58]
[1673553154955,20.0,16.546,16.531,20.0]
[1673553155168,20.0,16.546,16.532,17.0]
[1673553155486,65.33,16.547,16.532,35.75725104]
[1673553155691,65.33,16.547,16.533,84.99448855]
[1673553155883,65.33,16.547,16.534,17.0]
[1673553156225,45.33,16.547,16.54,20.57]
[1673553156737,45.33,16.547,16.535,35.98551317]
[1673553156949,45.33,16.547,16.536,20.0]
[1673553157158,45.33,16.547,16.533,20.0]
[1673553157562,45.33,16.547,16.53,20.0]
[1673553157774,45.33,16.547,16.52,103.01]
[1673553157979,134.5916,16.546,16.522,46.23723751]
[1673553158197,20.0,16.545,16.525,18.75725104]
[1673553158823,17.0,16.544,16.525,18.75725104]
[1673553159030,17.0,16.544,16.52,20.69]
[1673553159478,17.0,16.544,16.52,39.44725104]
[1673553160311,20.0,16.545,16.52,39.44725104]
[1673553160312,20.0,16.545,16.53,20.58]
[1673553160511,20.0,16.545,16.531,20.0]
[1673553160719,20.0,16.545,16.531,38.75725104]
[1673553160932,20.0,16.545,16.532,18.75725104]
[1673553161472,20.0,16.545,16.533,20.0]
[1673553161878,45.33,16.547,16.533,38.75725104]
[1673553162098,45.33,16.547,16.534,20.0]
[1673553162713,45.33,16.547,16.531,20.0]
[1673553163260,45.33,16.547,16.531,38.75725104]
[1673553163461,45.33,16.547,16.532,64.99448855]
[1673553163663,45.33,16.547,16.533,20.0]
[1673553163871,45.33,16.547,16.54,20.58]
[1673553164082,45.33,16.547,16.541,20.0]
[1673553164309,45.33,16.547,16.542,17.0]
[1673553164712,45.33,16.547,16.543,20.0]
[1673553164929,45.33,16.547,16.544,17.0]
[1673553165263,45.33,16.547,16.545,20.0]
[1673553165572,45.33,16.547,16.533,117.7774]
[1673553165782,45.33,16.547,16.536,18.75725104]
[1673553165993,45.33,16.547,16.537,17.0]
[1673553166604,45.33,16.547,16.54,20.58]
[1673553166817,45.33,16.547,16.541,17.0]
[1673553167242,45.33,16.547,16.542,20.0]
[1673553167456,45.33,16.547,16.543,17.0]
[1673553167775,45.33,16.547,16.544,20.0]
[1673553167972,45.33,16.547,16.545,17.0]
[1673553168183,20.0,16.555,16.546,20.0]
[1673553168408,20.0,16.558,16.547,17.0]
[1673553168612,20.0,16.558,16.548,20.0]
[1673553168824,20.0,16.558,16.549,17.0]
[1673553169243,20.0,16.563,16.55,40.58]
[1673553169560,20.0,16.563,16.551,17.0]
[1673553169757,20.0,16.563,16.55,59.33725104]
[1673553169973,20.0,16.563,16.55,40.58]
[1673553170410,20.0,16.563,16.55,20.0]
[1673553170604,20.0,16.563,16.541,20.0]
[1673553170818,224.69,16.561,16.53,20.69]
[1673553171143,20.0,16.56,16.53,39.44725104]
[1673553171337,179.4,16.558,16.53,39.44725104]
[1673553171540,55.62644879,16.56,16.53,39.44725104]
[1673553171541,179.4,16.556,16.531,19.35]
[1673553171863,20.0,16.553,16.53,39.44725104]
[1673553172074,45.32,16.552,16.532,18.75725104]
[1673553172497,45.32,16.552,16.53,20.69]
[1673553173021,45.32,16.552,16.531,18.75725104]
[1673553173654,45.32,16.552,16.532,17.0]
[1673553173859,20.0,16.553,16.54,20.57]
[1673553174185,20.0,16.553,16.541,17.0]
[1673553174399,20.0,16.559,16.541,17.0]
[1673553174595,20.0,16.559,16.542,18.75725104]
[1673553174814,20.0,16.559,16.543,17.0]
[1673553175227,20.0,16.559,16.544,20.0]
[1673553175446,20.0,16.559,16.543,20.0]
[1673553175657,20.0,16.559,16.541,38.75725104]
[1673553176387,20.0,16.559,16.541,20.0]
[1673553176797,224.7,16.558,16.541,20.0]
[1673553177003,20.0,16.557,16.534,18.75725104]
[1673553177337,179.4,16.555,16.532,396.6]
[1673553177550,244.71,16.554,16.532,396.6]
[1673553177769,65.31,16.554,16.533,18.75725104]
[1673553178160,17.0,16.553,16.533,18.75725104]
[1673553178371,45.32,16.552,16.532,396.6]
[1673553178600,20.0,16.55,16.533,20.0]
[1673553178810,45.32,16.549,16.533,20.0]
[1673553179030,20.0,16.548,16.533,20.0]
[1673553179206,20.0,16.548,16.533,38.75725104]
[1673553179647,20.0,16.548,16.533,18.75725104]
[1673553179864,20.0,16.548,16.534,17.0]
[1673553180056,20.0,16.548,16.534,63.23723751]
[1673553180256,20.0,16.548,16.535,64.99448855]
[1673553180470,20.0,16.548,16.536,17.0]
[1673553180705,20.0,16.548,16.536,35.75725104]
[1673553180898,20.0,16.548,16.536,17.0]
[1673553181109,20.0,16.548,16.537,20.0]
[1673553181321,20.0,16.548,16.533,20.0]
[1673553181837,20.0,16.546,16.533,20.0]
[1673553182057,20.0,16.546,16.531,20.0]
[1673553182367,20.0,16.546,16.528,20.0]
[1673553182569,20.0,16.544,16.528,20.0]
[1673553182993,20.0,16.544,16.528,38.75725104]
[1673553183940,20.0,16.544,16.529,17.0]
[1673553184270,20.0,16.544,16.53,20.0]
[1673553184476,20.0,16.544,16.531,17.0]
[1673553184685,20.0,16.544,16.532,20.0]
[1673553185008,20.0,16.544,16.533,17.0]
[1673553185199,20.0,16.544,16.534,20.0]
[1673553185407,20.0,16.544,16.534,38.75725104]
[1673553185622,20.0,16.544,16.534,20.0]
[1673553185837,20.0,16.544,16.531,20.0]
[1673553186274,20.0,16.544,16.528,20.0]
[1673553186678,20.0,16.544,16.53,18.75725104]
[1673553186890,20.0,16.544,16.531,20.0]
[1673553187095,20.0,16.544,16.532,40.65]
[1673553187310,20.0,16.548,16.533,37.96]
[1673553187634,20.0,16.548,16.534,60.01725104]
[1673553187838,20.0,16.548,16.535,20.0]
[1673553188031,20.0,16.55,16.54,20.58]
[1673553188243,20.0,16.55,16.541,61.81]
[1673553188455,20.0,16.554,16.542,17.96]
[1673553188683,175.6438,16.562,16.543,63.43]
[1673553188892,175.6438,16.562,16.544,17.0]
[1673553189124,175.6438,16.562,16.545,20.0]
[1673553189644,65.3,16.559,16.545,20.0]
[1673553189853,65.3,16.559,16.546,17.0]
[1673553190065,20.0,16.559,16.546,17.0]
[1673553190271,20.0,16.559,16.547,20.0]
[1673553190459,20.0,16.559,16.547,66.23723751]
[1673553190885,20.0,16.559,16.547,20.0]
[1673553191110,20.0,16.559,16.541,44.26]
[1673553191304,244.7,16.559,16.534,42.93]
[1673553191514,45.31,16.556,16.536,51.41526991]
[1673553191849,179.4,16.554,16.533,18.75725104]
[1673553192063,224.71,16.553,16.531,40.55]
[1673553192247,17.0,16.552,16.526,40.99]
[1673553192454,224.72,16.551,16.526,40.99]
[1673553192786,20.0,16.549,16.527,18.75725104]
[1673553192993,45.33,16.548,16.527,18.75725104]
[1673553193197,45.33,16.548,16.526,40.99]
[1673553193638,45.33,16.548,16.526,59.74725104]
[1673553193838,37.0,16.547,16.525,153.4354]
[1673553194057,45.33,16.546,16.525,153.4354]
[1673553194679,20.0,16.545,16.526,20.0]
[1673553194892,20.0,16.545,16.527,17.0]
[1673553195083,20.0,16.545,16.528,57.43]
[1673553195419,20.0,16.545,16.529,17.0]
[1673553195608,20.0,16.545,16.53,20.0]
[1673553195818,20.0,16.545,16.531,17.0]
[1673553196142,20.0,16.547,16.532,20.0]
[1673553196353,20.0,16.547,16.533,54.36]
[1673553196593,20.0,16.547,16.534,20.0]
[1673553196768,20.0,16.552,16.54,20.58]
[1673553196978,20.0,16.552,16.541,59.33]
[1673553197186,20.0,16.552,16.542,17.0]
[1673553197512,131.4328,16.559,16.543,20.0]
[1673553197837,131.4328,16.559,16.544,17.0]
[1673553198044,131.4328,16.559,16.545,20.0]
[1673553198236,131.4328,16.559,16.546,17.0]
[1673553198452,20.0,16.559,16.547,62.62]
[1673553198659,20.0,16.559,16.55,20.58]
[1673553198873,20.0,16.559,16.551,17.0]
[1673553199080,20.0,16.562,16.552,20.0]
[1673553199399,20.0,16.567,16.553,17.0]
[1673553199608,20.0,16.567,16.554,20.0]
[1673553199823,20.0,16.567,16.552,20.0]
[1673553200458,20.0,16.567,16.553,17.0]
[1673553200676,20.0,16.567,16.554,20.0]
[1673553200878,20.0,16.567,16.555,17.0]
[1673553201203,20.0,16.567,16.556,20.0]
[1673553201393,20.0,16.567,16.557,17.0]
[1673553202037,20.0,16.567,16.554,20.0]
[1673553202465,20.0,16.567,16.552,20.0]
[1673553202868,20.0,16.567,16.551,20.0]
[1673553203183,179.4,16.565,16.543,43.84]
[1673553203401,62.28,16.564,16.541,43.84]
[1673553203598,20.0,16.563,16.541,43.84]
[1673553203813,45.29,16.562,16.541,62.59725104]
[1673553204563,45.29,16.562,16.542,17.0]
[1673553204754,20.0,16.563,16.55,20.57]
[1673553205083,20.0,16.563,16.551,62.11]
[1673553205290,20.0,16.563,16.551,83.86725104]
[1673553205509,20.0,16.563,16.551,20.0]
[1673553205911,20.0,16.563,16.551,65.32]
[1673553206121,20.0,16.563,16.551,84.07725104]
[1673553206662,20.0,16.563,16.551,20.0]
[1673553207288,65.29,16.563,16.551,20.0]
[1673553207495,20.0,16.563,16.547,20.0]
[1673553207726,20.0,16.563,16.548,44.4]
[1673553207924,20.0,16.563,16.55,20.58]
[1673553208135,20.0,16.563,16.551,20.0]
[1673553208338,20.0,16.563,16.552,17.0]
[1673553208767,20.0,16.563,16.553,20.0]
[1673553208959,20.0,16.563,16.554,17.0]
[1673553209165,20.0,16.563,16.555,20.0]
[1673553209407,65.29,16.563,16.551,20.0]
[1673553209602,65.29,16.563,16.544,45.14]
[1673553209822,65.29,16.563,16.54,39.21725104]
[1673553210129,65.29,16.563,16.544,18.75725104]
[1673553210967,65.29,16.563,16.541,43.85]
[1673553211168,65.29,16.563,16.542,20.0]
[1673553211913,244.69,16.563,16.542,20.0]
[1673553212111,17.0,16.562,16.542,20.0]
[1673553212322,45.29,16.561,16.542,20.0]
[1673553212531,20.0,16.561,16.542,20.0]
[1673553212742,45.3,16.56,16.542,20.0]
[1673553213181,20.0,16.561,16.543,64.09725104]
[1673553213378,20.0,16.561,16.544,37.0]
[1673553214641,20.0,16.561,16.544,55.75725104]
[1673553214852,20.0,16.561,16.545,45.34]
[1673553215067,20.0,16.561,16.546,17.0]
[1673553216855,20.0,16.561,16.545,17.0]
[1673553216856,45.3,16.56,16.545,17.0]
[1673553217780,20.0,16.561,16.545,17.0]
[1673553218009,20.0,16.561,16.545,35.75725104]
[1673553218544,20.0,16.561,16.545,81.09725104]
[1673553219174,20.0,16.561,16.546,18.75725104]
[1673553219384,20.0,16.561,16.547,17.0]
[1673553219942,20.0,16.559,16.546,17.0]
[1673553220119,20.0,16.559,16.544,20.0]
[1673553220454,20.0,16.559,16.543,20.0]
[1673553220665,20.0,16.559,16.542,20.0]
[1673553220970,20.0,16.559,16.541,20.0]
[1673553221185,20.0,16.559,16.542,42.38]
[1673553221395,139.3866,16.563,16.543,20.0]
[1673553221396,20.0,16.563,16.543,20.0]
[1673553221589,20.0,16.563,16.55,20.41]
[1673553221800,20.0,16.563,16.551,20.0]
[1673553222021,20.0,16.563,16.551,55.75725104]
[1673553222229,20.0,16.563,16.551,37.0]
[1673553222453,20.0,16.563,16.552,18.75725104]
[1673553222658,20.0,16.563,16.553,37.0]
[1673553224113,20.0,16.563,16.553,55.75725104]
[1673553225586,20.0,16.564,16.553,55.75725104]
[1673553225816,20.0,16.567,16.553,55.75725104]
[1673553226856,20.0,16.567,16.553,38.75725104]
[1673553227062,45.28,16.566,16.553,38.75725104]
[1673553227263,20.0,16.565,16.553,20.0]
[1673553227477,20.0,16.565,16.552,18.75725104]
[1673553227807,20.0,16.565,16.553,38.75725104]
[1673553228015,20.0,16.565,16.553,20.0]
[1673553228212,224.68,16.564,16.546,20.0]
[1673553228417,20.0,16.562,16.547,18.75725104]
[1673553228627,20.0,16.562,16.542,505.1067]
[1673553228628,45.29,16.561,16.542,505.1067]
[1673553228837,45.29,16.561,16.544,18.75725104]
[1673553229062,20.0,16.56,16.544,18.75725104]
[1673553229272,20.0,16.56,16.542,505.1067]
[1673553229273,20.0,16.558,16.542,505.1067]
[1673553229467,20.0,16.558,16.543,18.75725104]
[1673553230740,45.3,16.557,16.543,18.75725104]
[1673553231180,20.0,16.558,16.543,18.75725104]
[1673553231911,20.0,16.558,16.544,17.0]
[1673553232124,20.0,16.558,16.545,20.0]
[1673553232434,20.0,16.558,16.546,17.0]
[1673553232648,20.0,16.558,16.547,20.0]
[1673553232962,20.0,16.558,16.547,38.75725104]
[1673553233165,20.0,16.558,16.548,37.51450208]
[1673553233488,20.0,16.558,16.548,18.75725104]
[1673553234009,20.0,16.558,16.549,17.0]
[1673553234199,20.0,16.558,16.548,18.75725104]
[1673553234409,20.0,16.558,16.55,18.75725104]
[1673553236521,20.0,16.558,16.547,20.0]
[1673553236732,20.0,16.558,16.544,20.0]
[1673553236952,20.0,16.558,16.542,396.6]
[1673553236953,45.3,16.557,16.543,38.75725104]
[1673553237166,45.3,16.557,16.545,37.51450208]
[1673553237349,20.0,16.556,16.546,20.0]
[1673553237687,20.0,16.556,16.544,18.75725104]
[1673553237688,20.0,16.554,16.544,18.75725104]
[1673553237928,20.0,16.554,16.545,20.0]
[1673553239457,20.0,16.554,16.546,18.75725104]
[1673553239669,20.0,16.554,16.547,20.0]
[1673553240089,20.0,16.554,16.547,38.75725104]
[1673553240715,20.0,16.554,16.548,17.0]
[1673553241236,20.0,16.554,16.549,18.75725104]
[1673553241683,20.0,16.554,16.549,0.00520904]
[1673553242099,20.0,16.554,16.547,38.752042]
[1673553242288,20.0,16.554,16.54,23.01]
[1673553242498,45.31,16.553,16.534,136.984]
[1673553242943,45.31,16.553,16.531,21.18]
[1673553243140,20.0,16.552,16.531,21.18]
[1673553243352,45.32,16.551,16.531,21.18]
[1673553243893,45.32,16.551,16.532,20.0]
[1673553244720,45.32,16.551,16.531,21.18]
[1673553245341,20.0,16.552,16.532,18.92]
[1673553245553,20.0,16.552,16.54,23.23]
[1673553245770,20.0,16.552,16.541,17.0]
[1673553247568,45.32,16.551,16.54,23.23]
[1673553247776,20.0,16.552,16.534,93.85191408]
[1673553247985,45.32,16.551,16.535,20.0]
[1673553248207,45.32,16.551,16.535,104.89264417]
[1673553248394,20.0,16.552,16.535,83.88264417]
[1673553248604,20.0,16.552,16.536,46.88264417]
[1673553248813,20.0,16.552,16.537,37.0]
[1673553249249,45.32,16.551,16.537,20.0]
[1673553249460,45.32,16.551,16.535,20.0]
[1673553249666,20.0,16.552,16.54,23.23]
[1673553249876,20.0,16.554,16.541,20.0]
[1673553250200,20.0,16.554,16.541,38.75725104]
[1673553250386,20.0,16.554,16.542,35.75725104]
[1673553250598,20.0,16.554,16.543,20.0]
[1673553250809,20.0,16.554,16.544,17.0]
[1673553251035,20.0,16.554,16.545,20.0]
[1673553251449,20.0,16.556,16.546,31.49]
[1673553251664,20.0,16.558,16.546,31.49]
[1673553251665,20.0,16.558,16.55,23.23]
[1673553251866,20.0,16.558,16.551,17.0]
[1673553252497,20.0,16.558,16.551,35.75725104]
[1673553252805,20.0,16.56,16.551,35.75725104]
[1673553253010,20.0,16.565,16.552,20.0]
[1673553253225,20.0,16.565,16.553,34.28]
[1673553253440,20.0,16.565,16.552,20.0]
[1673553254286,20.0,16.565,16.551,20.0]
[1673553254613,20.0,16.565,16.548,18.16]
[1673553254819,45.29,16.561,16.543,19.11]
[1673553255014,20.0,16.56,16.544,18.75725104]
[1673553255223,45.3,16.559,16.541,130.2418]
[1673553255539,45.3,16.559,16.543,18.75725104]
[1673553255749,45.3,16.559,16.544,20.0]
[1673553255960,20.0,16.558,16.542,20.0]
[1673553256171,45.3,16.557,16.541,111.7018]
[1673553256509,20.0,16.556,16.542,17.0]
[1673553256722,20.0,16.556,16.54,23.41]
[1673553256913,62.31,16.555,16.534,18.34]
[1673553257128,20.0,16.554,16.533,130.22245104]
[1673553257446,62.31,16.553,16.534,15.52]
[1673553257988,20.0,16.552,16.535,18.75725104]
[1673553258168,45.32,16.551,16.535,18.75725104]
[1673553258489,20.0,16.55,16.535,18.75725104]
[1673553258915,20.0,16.55,16.536,17.0]
[1673553259134,20.0,16.55,16.537,20.0]
[1673553259320,20.0,16.55,16.54,23.01]
[1673553259534,45.32,16.549,16.537,20.0]
[1673553259745,45.32,16.549,16.533,20.0]
[1673553259974,20.0,16.548,16.534,18.75725104]
[1673553260289,20.0,16.548,16.535,20.0]
[1673553260702,45.33,16.547,16.535,20.0]
[1673553260907,20.0,16.546,16.535,20.0]
[1673553261329,20.0,16.546,16.535,38.75725104]
[1673553263016,20.0,16.546,16.535,38.25725104]
[1673553263538,20.0,16.546,16.531,128.7347]
[1673553263539,45.34,16.545,16.525,12.98]
[1673553263744,45.34,16.545,16.524,108.204]
[1673553264180,20.0,16.546,16.525,12.94]
[1673553264399,20.0,16.546,16.525,31.69725104]
[1673553264803,20.0,16.546,16.526,17.0]
[1673553265019,20.0,16.546,16.53,23.01]
[1673553265346,20.0,16.546,16.531,17.0]
[1673553265561,20.0,16.546,16.53,23.01]
[1673553265868,62.34,16.545,16.525,12.33]
[1673553266079,20.0,16.544,16.526,17.0]
[1673553266268,45.34,16.543,16.525,12.33]
[1673553266606,20.0,16.542,16.526,20.0]
[1673553266813,45.35,16.541,16.525,20.0]
[1673553267010,20.0,16.54,16.525,20.0]
[1673553268285,45.35,16.539,16.521,13.0]
[1673553268478,62.35,16.539,16.52,23.11]
[1673553268687,20.0,16.538,16.52,23.11]
[1673553268898,20.0,16.536,16.52,23.11]
[1673553269115,20.0,16.536,16.52,115.64]
[1673553269324,20.0,16.536,16.521,12.65]
[1673553269751,20.0,16.536,16.522,17.0]
[1673553270068,20.0,16.536,16.523,13.33]
[1673553270284,20.0,16.536,16.524,17.0]
[1673553270494,20.0,16.536,16.525,20.0]
[1673553271213,20.0,16.536,16.521,20.0]
[1673553271422,20.0,16.536,16.522,17.0]
[1673553271638,20.0,16.536,16.523,20.0]
[1673553272077,20.0,16.536,16.524,17.0]
[1673553272289,20.0,16.536,16.525,20.0]
[1673553272901,20.0,16.536,16.526,17.0]
[1673553273219,20.0,16.536,16.527,20.0]
[1673553274060,20.0,16.536,16.521,20.0]
[1673553274272,45.36,16.535,16.522,17.0]
[1673553274585,20.0,16.536,16.523,20.0]
[1673553275416,20.0,16.536,16.524,17.0]
[1673553275635,20.0,16.536,16.525,20.0]
[1673553276269,20.0,16.536,16.522,20.0]
[1673553276494,20.0,16.536,16.521,20.0]
[1673553277749,20.0,16.536,16.522,17.0]
[1673553277957,20.0,16.536,16.523,20.0]
[1673553278486,45.36,16.535,16.516,9.282]
[1673553278682,17.0,16.534,16.511,120.7352]
[1673553278886,65.37,16.533,16.511,120.7352]
[1673553279327,37.0,16.532,16.515,396.6]
[1673553279539,45.37,16.531,16.515,396.6]
[1673553279751,20.0,16.529,16.515,396.6]
[1673553280059,20.0,16.529,16.51,23.11]
[1673553280060,224.78,16.528,16.51,23.11]
[1673553280379,224.78,16.528,16.507,111.201]
[1673553280380,17.0,16.527,16.507,111.201]
[1673553280598,45.39,16.526,16.507,111.201]
[1673553280795,45.39,16.526,16.507,129.95825104]
[1673553280990,224.78,16.528,16.507,129.95825104]
[1673553281198,17.0,16.527,16.507,129.95825104]
[1673553281421,20.0,16.525,16.507,129.95825104]
[1673553281650,62.39,16.524,16.507,111.201]
[1673553281955,20.0,16.523,16.507,111.201]
[1673553282155,20.0,16.523,16.507,129.95825104]
[1673553282883,20.0,16.523,16.508,17.0]
[1673553283092,20.0,16.523,16.51,23.23]
[1673553283298,20.0,16.523,16.511,37.0]
[1673553283723,20.0,16.525,16.511,37.0]
[1673553283938,65.38,16.529,16.511,37.0]
[1673553283939,20.0,16.529,16.511,55.75725104]
[1673553284149,20.0,16.529,16.511,143.47222544]
[1673553285108,10.0,16.529,16.511,143.47222544]
[1673553286699,20.0,16.53,16.52,23.01]
[1673553286890,20.0,16.532,16.521,37.0]
[1673553287646,20.0,16.532,16.521,55.75725104]
[1673553287837,20.0,16.532,16.521,37.0]
[1673553288053,20.0,16.532,16.521,20.0]
[1673553288768,20.0,16.532,16.521,38.75725104]
[1673553289193,20.0,16.532,16.522,18.75725104]
[1673553289415,20.0,16.532,16.523,20.0]
[1673553289835,20.0,16.532,16.521,20.0]
[1673553291518,20.0,16.532,16.52,23.01]
[1673553291715,20.0,16.532,16.521,20.0]
[1673553291927,20.0,16.532,16.516,20.0]
[1673553292357,20.0,16.532,16.517,18.75725104]
[1673553292573,20.0,16.532,16.518,20.0]
[1673553292763,20.0,16.532,16.52,23.23]
[1673553292974,20.0,16.532,16.521,17.0]
[1673553293185,20.0,16.533,16.522,20.0]
[1673553293410,20.0,16.533,16.523,17.0]
[1673553293610,20.0,16.533,16.524,20.0]
[1673553294047,20.0,16.533,16.524,22.422]
[1673553294444,20.0,16.538,16.524,22.422]
[1673553294664,20.0,16.538,16.525,17.0]
[1673553294892,20.0,16.538,16.526,24.26]
[1673553295099,20.0,16.538,16.527,17.0]
[1673553295615,20.0,16.538,16.528,6.364]
[1673553295810,20.0,16.538,16.529,17.0]
[1673553296881,20.0,16.538,16.528,17.0]
[1673553297930,20.0,16.538,16.527,8.791]
[1673553298157,20.0,16.538,16.526,20.0]
[1673553298349,20.0,16.538,16.523,20.0]
[1673553298786,45.36,16.537,16.523,20.0]
[1673553298976,20.0,16.538,16.524,18.75725104]
[1673553299183,20.0,16.538,16.525,20.0]
[1673553299417,20.0,16.539,16.53,23.23]
[1673553299815,20.0,16.539,16.531,17.0]
[1673553300028,20.0,16.54,16.531,17.0]
[1673553300237,45.32,16.549,16.532,61.87725104]
[1673553300573,20.0,16.556,16.533,35.75725104]
[1673553300778,65.32,16.55,16.534,43.54]
[1673553301197,45.34,16.545,16.53,116.06]
[1673553301411,20.0,16.544,16.527,116.836]
[1673553301618,45.34,16.543,16.527,116.836]
[1673553302357,37.0,16.542,16.521,23.0]
[1673553302554,45.35,16.541,16.522,131.65105104]
[1673553303417,45.35,16.541,16.525,17.0]
[1673553303817,20.0,16.54,16.525,17.0]
[1673553304036,20.0,16.54,16.526,20.0]
[1673553304245,20.0,16.54,16.527,17.0]
[1673553304659,20.0,16.54,16.527,28.92]